Body Name,Service Area Categorisation,Responsible Unit,Expenses Type,Date,Transaction number,Amount,Supplier Name,Card payment,
Fenland District Council,Cultural and Related Services,Leisure Centres,Premises Costs,31/01/2018,20190993,817.00 ,1st Alert UK Ltd,,
Fenland District Council,Cultural and Related Services,Leisure Centres,Premises Costs,17/01/2018,20190484,"4,900.00 ",A1 Fencing Ltd,,
Fenland District Council,South Fens Business Centre Rent Deposit,Balance Sheet Services,Balance Sheet,24/01/2018,20190663,"2,850.00 ",A4 Plus Limited,,
Fenland District Council,Corporate and Democratic Core,Corporate Management,Supplies and Services,04/01/2018,10033139,-44.00 ,Abellio Greater Anglia Ltd,Y,
Fenland District Council,"Highways, Roads and Transportation Services",Car Parks,Premises Costs,24/01/2018,20190754,"2,606.61 ",Adc (East Anglia) Ltd,,
Fenland District Council,Trading,Economic Estates,Premises Costs,17/01/2018,20190409,734.94 ,Adcock Refrigeration & Air Conditioning Ltd,,
Fenland District Council,Support Services,Fenland Hall,Premises Costs,17/01/2018,20190417,"1,365.48 ",ADT Fire and Security PLC,,
Fenland District Council,Support Services,Vehicle Workshop & Transport,Transport Costs,03/01/2018,20189946,822.34 ,Allstar Business Solutions Ltd,,
Fenland District Council,Support Services,Vehicle Workshop & Transport,Transport Costs,10/01/2018,20190317,646.78 ,Allstar Business Solutions Ltd,,
Fenland District Council,Support Services,Vehicle Workshop & Transport,Transport Costs,24/01/2018,20190671,811.80 ,Allstar Business Solutions Ltd,,
Fenland District Council,Cultural and Related Services,Leisure Centres,Supplies and Services,04/01/2018,10033136,100.00 ,Amazon,Y,
Fenland District Council,Support Services,Information & Communication Technology,Supplies and Services,04/01/2018,10033140,48.99 ,Amazon,Y,
Fenland District Council,Support Services,Accountancy,Supplies and Services,04/01/2018,10033143,7.99 ,Amazon,Y,
Fenland District Council,Support Services,Accountancy,Supplies and Services,29/01/2018,10033216,7.99 ,Amazon,Y,
Fenland District Council,Housing General Fund Services,Travellers Services,Premises Costs,03/01/2018,20190091,"5,522.67 ",Anglian Water,,
Fenland District Council,Cultural and Related Services,Leisure Centres,Premises Costs,03/01/2018,20189877,"1,642.16 ",Anglian Water Business Ltd (National),,
Fenland District Council,Housing General Fund Services,Travellers Services,Premises Costs,03/01/2018,20190082,650.54 ,Anglian Water Business Ltd (National),,
Fenland District Council,Support Services,The Base,Premises Costs,10/01/2018,20190084,"1,098.36 ",Anglian Water Business Ltd (National),,
Fenland District Council,Support Services,Fenland Hall,Premises Costs,24/01/2018,20190674,566.32 ,Anglian Water Business Ltd (National),,
Fenland District Council,Cultural and Related Services,Leisure Centres,Premises Costs,31/01/2018,20190849,993.75 ,Anglian Water Business Ltd (National),,
Fenland District Council,Cultural and Related Services,Leisure Centres,Premises Costs,31/01/2018,20190850,"1,289.94 ",Anglian Water Business Ltd (National),,
Fenland District Council,Cultural and Related Services,Leisure Centres,Premises Costs,31/01/2018,20190851,"1,303.64 ",Anglian Water Business Ltd (National),,
Fenland District Council,Cultural and Related Services,Leisure Centres,Premises Costs,31/01/2018,20190852,"1,769.50 ",Anglian Water Business Ltd (National),,
Fenland District Council,Cultural and Related Services,Leisure Centres,Supplies and Services,04/01/2018,10033144,66.97 ,Argos Business Solutions,Y,
Fenland District Council,Cultural and Related Services,Leisure Centres,Supplies and Services,29/01/2018,10033217,-7.50 ,Argos Business Solutions,Y,
Fenland District Council,Support Services,Post & Reprographics,Supplies and Services,31/01/2018,20190903,"1,177.49 ",Banner Group Limited,,
Fenland District Council,Cultural and Related Services,Leisure Centres,Premises Costs,24/01/2018,20190641,"1,075.00 ",Barnet Pool Maintenance Limited,,
Fenland District Council,Support Services,Human Resources,Third Party Payments,17/01/2018,20190416,"1,666.35 ",Bedford Borough Council,,
Fenland District Council,Cultural and Related Services,Leisure Centres,Supplies and Services,03/01/2018,20189904,"3,016.66 ",BigWave Media Ltd,,
Fenland District Council,Cultural and Related Services,Leisure Centres,Supplies and Services,24/01/2018,20190734,"3,016.66 ",BigWave Media Ltd,,
Fenland District Council,Support Services,The Base,Premises Costs,03/01/2018,20189254,"2,602.49 ",Bloom & Wake Ltd,,
Fenland District Council,Trading,Economic Estates,Premises Costs,24/01/2018,20190646,508.00 ,Bloom & Wake Ltd,,
Fenland District Council,Planning Services,Planning Policy,Supplies and Services,03/01/2018,20189973,"42,000.00 ",Bloom Procurement Services Ltd,,
Fenland District Council,Cultural and Related Services,Leisure Centres,Supplies and Services,03/01/2018,20189974,"4,500.00 ",Bloom Procurement Services Ltd,,
Fenland District Council,Support Services,Human Resources,Employee Costs,24/01/2018,20190727,"4,269.45 ",Bond Solon Training Ltd,,
Fenland District Council,Housing Grants,Capital Services,Capital Costs,03/01/2018,20190020,"1,417.50 ",Borough Council Of Kings Lynn & West Norfolk,,
Fenland District Council,Housing Grants,Capital Services,Capital Costs,03/01/2018,20190021,"1,300.50 ",Borough Council Of Kings Lynn & West Norfolk,,
Fenland District Council,Housing Grants,Capital Services,Capital Costs,03/01/2018,20190044,"1,561.26 ",Borough Council Of Kings Lynn & West Norfolk,,
Fenland District Council,Housing Grants,Capital Services,Capital Costs,03/01/2018,20190045,"1,142.62 ",Borough Council Of Kings Lynn & West Norfolk,,
Fenland District Council,Housing Grants,Capital Services,Capital Costs,10/01/2018,20190145,"3,286.80 ",Borough Council Of Kings Lynn & West Norfolk,,
Fenland District Council,Housing Grants,Capital Services,Capital Costs,17/01/2018,20190363,590.38 ,Borough Council Of Kings Lynn & West Norfolk,,
Fenland District Council,Housing Grants,Capital Services,Capital Costs,17/01/2018,20190431,"2,248.50 ",Borough Council Of Kings Lynn & West Norfolk,,
Fenland District Council,Housing Grants,Capital Services,Capital Costs,31/01/2018,20190781,904.20 ,Borough Council Of Kings Lynn & West Norfolk,,
Fenland District Council,Housing Grants,Capital Services,Capital Costs,31/01/2018,20190782,"1,021.94 ",Borough Council Of Kings Lynn & West Norfolk,,
Fenland District Council,Housing Grants,Capital Services,Capital Costs,31/01/2018,20190783,"2,587.78 ",Borough Council Of Kings Lynn & West Norfolk,,
Fenland District Council,Housing Grants,Capital Services,Capital Costs,31/01/2018,20190835,915.07 ,Borough Council Of Kings Lynn & West Norfolk,,
Fenland District Council,Housing Grants,Capital Services,Capital Costs,31/01/2018,20190836,"1,885.43 ",Borough Council Of Kings Lynn & West Norfolk,,
Fenland District Council,Housing Grants,Capital Services,Capital Costs,31/01/2018,20190945,"1,160.18 ",Borough Council Of Kings Lynn & West Norfolk,,
Fenland District Council,Stores holding a/c post transfer,Balance Sheet Services,Balance Sheet,03/01/2018,20189922,"4,033.75 ",Bpi Recycled Products,,
Fenland District Council,Environment Services,Garden Waste,Supplies and Services,17/01/2018,20190375,"3,666.67 ",Bramble Hub Ltd,,
Fenland District Council,Central Services,Council Tax Cost of Collection,Income,17/01/2018,20190171,"8,782.16 ",Breckland Council,,
Fenland District Council,Environment Services,Food Safety,Supplies and Services,24/01/2018,20190510,"8,532.50 ",Breckland Council,,
Fenland District Council,Cultural and Related Services,Leisure Centres,Supplies and Services,10/01/2018,20190185,523.31 ,Brenntag UK Limited,,
Fenland District Council,Cultural and Related Services,Leisure Centres,Supplies and Services,10/01/2018,20190186,725.25 ,Brenntag UK Limited,,
Fenland District Council,Trading,Marine Services,Supplies and Services,31/01/2018,20190870,"1,474.00 ",British Ports Association,,
Fenland District Council,Housing General Fund Services,Travellers Services,Supplies and Services,31/01/2018,20190953,"2,270.75 ",Bryan Lecoche Ltd,,
Fenland District Council,Housing Grants,Capital Services,Capital Costs,03/01/2018,20190023,"1,703.24 ",C D Allflatt Ltd,,
Fenland District Council,Housing Grants,Capital Services,Capital Costs,03/01/2018,20190092,"3,798.70 ",C D Allflatt Ltd,,
Fenland District Council,Housing Grants,Capital Services,Capital Costs,24/01/2018,20190660,"3,703.07 ",C D Allflatt Ltd,,
Fenland District Council,Housing Grants,Capital Services,Capital Costs,31/01/2018,20190837,"3,389.29 ",C D Allflatt Ltd,,
Fenland District Council,Cultural and Related Services,Leisure Centres,Premises Costs,10/01/2018,20190190,"1,200.00 ",Cambridge Asbestos Removal Ltd,,
Fenland District Council,Trading,Refuse Collection - Trade,Third Party Payments,03/01/2018,20190036,"11,816.01 ",Cambridgeshire County Council,,
Fenland District Council,Support Services,The Base,Premises Costs,10/01/2018,20190211,"2,464.75 ",Cambridgeshire County Council,,
Fenland District Council,Support Services,Customer First,Premises Costs,17/01/2018,20190331,"2,271.83 ",Cambridgeshire County Council,,
Fenland District Council,"Highways, Roads and Transportation Services",Transport Development,Supplies and Services,31/01/2018,20190895,"5,773.81 ",Cambridgeshire County Council,,
Fenland District Council,"Highways, Roads and Transportation Services",Highways (District),Premises Costs,31/01/2018,20190955,"6,770.93 ",Cambridgeshire County Council,,
Fenland District Council,"Highways, Roads and Transportation Services",Highways (District),Premises Costs,31/01/2018,20190956,"6,197.13 ",Cambridgeshire County Council,,
Fenland District Council,"Highways, Roads and Transportation Services",Highways (District),Premises Costs,31/01/2018,20190957,"4,760.88 ",Cambridgeshire County Council,,
Fenland District Council,Corporate and Democratic Core,Corporate Management,Supplies and Services,03/01/2018,20189884,"7,186.02 ",Capacity Grid,,
Fenland District Council,Corporate and Democratic Core,Corporate Management,Supplies and Services,24/01/2018,20190668,"2,227.38 ",Capacity Grid,,
Fenland District Council,Central Services,Elections & Electoral Registration,Supplies and Services,10/01/2018,20190016,824.45 ,CFH Docmail Ltd,,
Fenland District Council,Central Services,Elections & Electoral Registration,Supplies and Services,24/01/2018,20190680,"1,656.05 ",CFH Docmail Ltd,,
Fenland District Council,Manor LC Vending Stock Account,Balance Sheet Services,Balance Sheet,24/01/2018,20190629,"1,008.00 ",CGPM Ltd T/As Espresso Essential,,
Fenland District Council,Trading,Marine Services,Supplies and Services,17/01/2018,20190482,563.00 ,Charity & Taylor Electronic Services Ltd,,
Fenland District Council,Planning Services,Markets & Fairs,Premises Costs,10/01/2018,20190260,"3,872.50 ",Charles Endirect (CEL) Ltd,,
Fenland District Council,"Highways, Roads and Transportation Services",Highways (District),Premises Costs,24/01/2018,20190625,"3,757.55 ",Charles Lighting Limited,,
Fenland District Council,Housing General Fund Services,Housing Strategy,Supplies and Services,04/01/2018,10033148,240.00 ,Chartered Institute of Environmental Health,Y,
Fenland District Council,Environment Services,Food Safety,Supplies and Services,24/01/2018,20190468,772.00 ,Chartered Institute of Environmental Health,,
Fenland District Council,Trading,Marine Services,Transport Costs,03/01/2018,20189825,"1,382.00 ",Clements Engineering (St Neots) Ltd,,
Fenland District Council,Planning Services,Planning Policy,Supplies and Services,03/01/2018,20189875,"3,000.00 ",Colliers International Property Advisers UK LLP,,
Fenland District Council,Housing General Fund Services,Homeless Persons,Employee Costs,03/01/2018,20189951,"6,198.13 ",Comensura Limited,,
Fenland District Council,Housing General Fund Services,Homeless Persons,Employee Costs,03/01/2018,20190039,"2,811.71 ",Comensura Limited,,
Fenland District Council,Housing General Fund Services,Homeless Persons,Employee Costs,10/01/2018,20190158,"2,644.44 ",Comensura Limited,,
Fenland District Council,Planning Services,Planning Enforcement,Employee Costs,24/01/2018,20190388,"7,841.24 ",Comensura Limited,,
Fenland District Council,Planning Services,Planning Enforcement,Employee Costs,24/01/2018,20190611,"4,412.39 ",Comensura Limited,,
Fenland District Council,Housing General Fund Services,Homeless Persons,Employee Costs,31/01/2018,20190787,"4,772.14 ",Comensura Limited,,
Fenland District Council,Trading,Marine Services,Supplies and Services,03/01/2018,20189910,915.00 ,Contract Sign Systems Limited,,
Fenland District Council,Trading,Marine Services,Supplies and Services,10/01/2018,20190291,"1,845.00 ",Crowland Cranes Ltd,,
Fenland District Council,Trading,Marine Services,Premises Costs,31/01/2018,20190606,"6,222.55 ",Crown Estate Commissioners,,
Fenland District Council,Support Services,Vehicle Workshop & Transport,Transport Costs,03/01/2018,20190053,502.87 ,Dennis Eagle,,
Fenland District Council,Wind Turbines,Balance Sheet Services,Balance Sheet,31/01/2018,20190784,"1,990.00 ",Doddington Recreation Committee,,
Fenland District Council,Trading,Marine Services,Supplies and Services,17/01/2018,20190380,700.00 ,Drake Towage Limited,,
Fenland District Council,Support Services,Vehicle Workshop & Transport,Transport Costs,04/01/2018,10033141,"1,137.50 ",DVLA,Y,
Fenland District Council,Support Services,Vehicle Workshop & Transport,Transport Costs,29/01/2018,10033220,895.00 ,DVLA,Y,
Fenland District Council,Support Services,Vehicle Workshop & Transport,Transport Costs,29/01/2018,10033222,242.50 ,DVLA,Y,
Fenland District Council,Environment Services,Pollution Reduction,Supplies and Services,04/01/2018,10033147,317.75 ,East Cambridgeshire District Council,Y,
Fenland District Council,Trading,Marine Services,Transport Costs,17/01/2018,20188802,675.00 ,East Coast Diesel Limited,,
Fenland District Council,Trading,Marine Services,Supplies and Services,17/01/2018,20190372,"1,036.75 ",East Coast Diesel Limited,,
Fenland District Council,Support Services,Post & Reprographics,Supplies and Services,17/01/2018,20190408,"2,285.36 ",Eastern Rent A Van & Cars (Bossretty Ltd),,
Fenland District Council,Cultural and Related Services,Leisure Centres,Premises Costs,17/01/2018,20188420,"1,679.54 ",Eastern Shires Purchasing Organisation,,
Fenland District Council,Cultural and Related Services,Leisure Centres,Premises Costs,17/01/2018,20188421,"2,435.47 ",Eastern Shires Purchasing Organisation,,
Fenland District Council,Cultural and Related Services,Leisure Centres,Premises Costs,17/01/2018,20190344,"2,711.97 ",Eastern Shires Purchasing Organisation,,
Fenland District Council,Support Services,Fenland Hall,Premises Costs,17/01/2018,20190346,"1,048.62 ",Eastern Shires Purchasing Organisation,,
Fenland District Council,Cultural and Related Services,Leisure Centres,Premises Costs,17/01/2018,20190347,"2,021.78 ",Eastern Shires Purchasing Organisation,,
Fenland District Council,Cultural and Related Services,Leisure Centres,Premises Costs,17/01/2018,20190436,"3,312.83 ",Eastern Shires Purchasing Organisation,,
Fenland District Council,Cultural and Related Services,Leisure Centres,Premises Costs,17/01/2018,20190437,"3,510.44 ",Eastern Shires Purchasing Organisation,,
Fenland District Council,Cultural and Related Services,Leisure Centres,Premises Costs,17/01/2018,20190438,"2,377.00 ",Eastern Shires Purchasing Organisation,,
Fenland District Council,Support Services,Fenland Hall,Premises Costs,17/01/2018,20190439,"1,512.62 ",Eastern Shires Purchasing Organisation,,
Fenland District Council,Planning Services,Planning Policy,Supplies and Services,10/01/2018,20189114,"11,955.25 ",Ecology Consultancy  Ltd,,
Fenland District Council,Planning Services,Economic Development,Supplies and Services,04/01/2018,10033137,13.19 ,Email Blaster UK,Y,
Fenland District Council,Planning Services,Economic Development,Supplies and Services,29/01/2018,10033215,13.19 ,Email Blaster UK,Y,
Fenland District Council,Housing Grants,Capital Services,Capital Costs,17/01/2018,20190400,"7,495.00 ",EMS Lifts Ltd,,
Fenland District Council,Support Services,Information & Communication Technology,Supplies and Services,04/01/2018,10033135,115.76 ,Enterprise Distributed Technologies Pty Ltd,Y,
Fenland District Council,Cultural and Related Services,Leisure Centres,Supplies and Services,04/01/2018,10033150,78.76 ,Facebook,Y,
Fenland District Council,Cultural and Related Services,Leisure Centres,Supplies and Services,29/01/2018,10033223,48.03 ,Facebook,Y,
Fenland District Council,"Highways, Roads and Transportation Services",Transport Development,Supplies and Services,10/01/2018,20190203,"3,645.75 ",Fact Ltd,,
Fenland District Council,Housing Grants,Capital Services,Capital Costs,31/01/2018,20190778,"4,675.00 ",Felgains Ltd,,
Fenland District Council,Environment Services,Public Health,Third Party Payments,10/01/2018,20190282,"1,380.00 ",Fenland Stray Dog Collection,,
Fenland District Council,Cultural and Related Services,Leisure Centres,Supplies and Services,03/01/2018,20189950,"1,449.15 ",Fitronics Ltd T/a The Retention People,,
Fenland District Council,Support Services,Fenland Hall,Premises Costs,03/01/2018,20189994,965.00 ,Flagpole Express,,
Fenland District Council,Planning Services,HLF - High St Wisbech,Supplies and Services,17/01/2018,20190478,700.00 ,Forgotten Heritage Limited,,
Fenland District Council,Planning Services,HLF - High St Wisbech,Supplies and Services,17/01/2018,20190479,700.00 ,Forgotten Heritage Limited,,
Fenland District Council,Housing Grants,Capital Services,Capital Costs,03/01/2018,20190043,"5,194.20 ",Foster Property Maintenance Ltd,,
Fenland District Council,Housing Grants,Capital Services,Capital Costs,31/01/2018,20190780,"3,966.31 ",Foster Property Maintenance Ltd,,
Fenland District Council,Housing Grants,Capital Services,Capital Costs,31/01/2018,20190834,699.03 ,Foster Property Maintenance Ltd,,
Fenland District Council,Trading,Marine Services,Transport Costs,24/01/2018,20190631,"1,606.83 ",French Marine Motors Ltd,,
Fenland District Council,Trading,Marine Services,Supplies and Services,31/01/2018,20190801,551.80 ,French Marine Motors Ltd,,
Fenland District Council,Support Services,Vehicle Workshop & Transport,Transport Costs,17/01/2018,20190517,672.18 ,Fuchs Lubricants (Uk) Plc,,
Fenland District Council,Housing Grants,Capital Services,Capital Costs,17/01/2018,20190315,"1,957.94 ",Futureheat Plumbing & Heating Services,,
Fenland District Council,Housing Grants,Capital Services,Capital Costs,31/01/2018,20190947,"3,867.26 ",Futureheat Plumbing & Heating Services,,
Fenland District Council,Support Services,Vehicle Workshop & Transport,Transport Costs,29/01/2018,10033225,45.00 ,Grimwood Auto Electrical Repairs,Y,
Fenland District Council,Wind Turbines,Balance Sheet Services,Balance Sheet,24/01/2018,20190643,"3,550.00 ",Groundwork Cambridgeshire and Peterborough,,
Fenland District Council,Cultural and Related Services,Leisure Centres,Supplies and Services,24/01/2018,20190111,"4,152.05 ",Gunnebo UK Ltd,,
Fenland District Council,Housing General Fund Services,Homeless Persons,Supplies and Services,29/01/2018,10033214,710.00 ,H M Courts and Tribunals Service,Y,
Fenland District Council,Multiple Services,Multiple Services,Supplies and Services,03/01/2018,20189792,603.00 ,H M Land Registry,,
Fenland District Council,Trading,Economic Estates,Supplies and Services,31/01/2018,20190966,"1,525.10 ",H Richmond t/a The Sandwich Bar,,
Fenland District Council,Housing General Fund Services,Travellers Services,Premises Costs,24/01/2018,20190292,"1,260.00 ",Heating & Plumbing Services (Wisbech) Ltd,,
Fenland District Council,Trading,Economic Estates,Premises Costs,10/01/2018,20190293,624.00 ,Heating & Plumbing Services (Wisbech) Ltd,,
Fenland District Council,Central Services,Council Tax Cost of Collection,Supplies and Services,04/01/2018,10033142,654.00 ,HM Courts Service,Y,
Fenland District Council,Central Services,Council Tax Cost of Collection,Supplies and Services,29/01/2018,10033218,669.00 ,HM Courts Service,Y,
Fenland District Council,Central Services,Miscellaneous Central Services,Capital Financing,31/01/2018,20190637,"5,598.74 ",HM Revenue & Customs,,
Fenland District Council,Cultural and Related Services,Leisure Centres,Supplies and Services,24/01/2018,20190682,740.00 ,Iliffe Media Publishing Limited,,
Fenland District Council,Corporate and Democratic Core,Corporate Management,Supplies and Services,10/01/2018,20190320,"4,000.00 ",Ingham Pinnock Associates,,
Fenland District Council,Support Services,Fenland Hall,Premises Costs,31/01/2018,20190869,"1,972.00 ",Intacept Management Limited,,
Fenland District Council,Support Services,Accountancy,Supplies and Services,03/01/2018,20189936,"1,550.00 ",Integra Associates Limited,,
Fenland District Council,Support Services,Accountancy,Supplies and Services,24/01/2018,20190644,775.00 ,Integra Associates Limited,,
Fenland District Council,Cultural and Related Services,Leisure Centres,Supplies and Services,04/01/2018,10033145,71.45 ,Ironmongery Direct,Y,
Fenland District Council,Cultural and Related Services,Recreation Grounds & Allotments,Premises Costs,10/01/2018,20189727,"1,173.60 ",ISS Facility Services,,
Fenland District Council,Housing General Fund Services,Travellers Services,Premises Costs,24/01/2018,20190762,"1,380.00 ",ISS Facility Services,,
Fenland District Council,Cultural and Related Services,Leisure Centres,Supplies and Services,04/01/2018,10033149,248.00 ,istock International,Y,
Fenland District Council,Support Services,The Base,Supplies and Services,03/01/2018,20189971,630.00 ,J Hill & Co Limited,,
Fenland District Council,Environment Services,Public Health,Employee Costs,03/01/2018,20189952,"1,012.04 ",James Andrews Recruitment Solutions,,
Fenland District Council,Environment Services,Licensing,Employee Costs,03/01/2018,20189953,945.72 ,James Andrews Recruitment Solutions,,
Fenland District Council,Environment Services,Public Health,Employee Costs,24/01/2018,20190159,802.34 ,James Andrews Recruitment Solutions,,
Fenland District Council,Environment Services,Public Health,Employee Costs,24/01/2018,20190160,638.23 ,James Andrews Recruitment Solutions,,
Fenland District Council,Environment Services,Licensing,Employee Costs,10/01/2018,20190161,607.05 ,James Andrews Recruitment Solutions,,
Fenland District Council,Environment Services,Licensing,Employee Costs,10/01/2018,20190162,996.84 ,James Andrews Recruitment Solutions,,
Fenland District Council,Environment Services,Public Health,Employee Costs,24/01/2018,20190384,"1,012.04 ",James Andrews Recruitment Solutions,,
Fenland District Council,Environment Services,Licensing,Employee Costs,17/01/2018,20190385,932.94 ,James Andrews Recruitment Solutions,,
Fenland District Council,Environment Services,Public Health,Employee Costs,24/01/2018,20190609,"1,276.45 ",James Andrews Recruitment Solutions,,
Fenland District Council,Environment Services,Licensing,Employee Costs,24/01/2018,20190610,"1,009.62 ",James Andrews Recruitment Solutions,,
Fenland District Council,Environment Services,Licensing,Employee Costs,31/01/2018,20190789,"1,111.86 ",James Andrews Recruitment Solutions,,
Fenland District Council,Environment Services,Streetscene,Supplies and Services,24/01/2018,20190747,"6,091.50 ",Kingdom Service Group Ltd,,
Fenland District Council,Environment Services,Streetscene,Supplies and Services,24/01/2018,20190748,"6,091.50 ",Kingdom Service Group Ltd,,
Fenland District Council,Support Services,Information & Communication Technology,Supplies and Services,24/01/2018,20190242,709.06 ,Kingsfield Computer Products Ltd,,
Fenland District Council,Support Services,Post & Reprographics,Supplies and Services,03/01/2018,20190038,"9,959.64 ",Konica Minolta Business Solutions (UK) Ltd,,
Fenland District Council,Cultural and Related Services,Leisure Centres,Supplies and Services,24/01/2018,20190749,625.00 ,Kykloud Ltd,,
Fenland District Council,Trading,Marine Services,Premises Costs,17/01/2018,20190401,"5,249.87 ",LCC Support Services Limited,,
Fenland District Council,Trading,Economic Estates,Premises Costs,17/01/2018,20190402,541.42 ,LCC Support Services Limited,,
Fenland District Council,Cultural and Related Services,Leisure Centres,Premises Costs,03/01/2018,20190031,563.55 ,LCS Energy Ltd,,
Fenland District Council,Cultural and Related Services,Leisure Centres,Premises Costs,31/01/2018,20191002,611.15 ,LCS Energy Ltd,,
Fenland District Council,Support Services,Customer First,Supplies and Services,31/01/2018,20190802,974.00 ,Legacy Telecom Ltd,,
Fenland District Council,Support Services,Information & Communication Technology,Supplies and Services,10/01/2018,20189682,887.50 ,LinchPin Networks,,
Fenland District Council,Support Services,Information & Communication Technology,Supplies and Services,10/01/2018,20189835,"3,000.00 ",LinchPin Networks,,
Fenland District Council,Cultural and Related Services,Sports Development,Supplies and Services,03/01/2018,20189949,"7,500.00 ",Living Sport,,
Fenland District Council,Support Services,Fenland Hall,Premises Costs,29/01/2018,10033219,208.75 ,Locks On Line Limited,Y,
Fenland District Council,Trading,Marine Services,Supplies and Services,17/01/2018,20190411,"2,242.00 ",Longscar Marine Consultants ltd,,
Fenland District Council,Housing General Fund Services,Travellers Services,Premises Costs,31/01/2018,20190917,"1,488.40 ",M & M Services,,
Fenland District Council,Housing Grants,Capital Services,Capital Costs,24/01/2018,20189830,"1,722.35 ",M Watson Construction T/A MWC Group,,
Fenland District Council,Housing Grants,Capital Services,Capital Costs,31/01/2018,20190833,"2,193.22 ",M Watson Construction T/A MWC Group,,
Fenland District Council,Cultural and Related Services,Sports Development,Supplies and Services,31/01/2018,20190752,562.50 ,Magenta Coaching Solutions,,
Fenland District Council,General Suspense Control A/C,Balance Sheet Services,Balance Sheet,31/01/2018,20190911,"1,399.00 ",March & District Amateur Operatic Society,,
Fenland District Council,Trading,Marine Services,Supplies and Services,31/01/2018,20190971,638.24 ,Marlex Marine Technology Ltd,,
Fenland District Council,Trading,Marine Services,Supplies and Services,31/01/2018,20190972,"1,664.74 ",Marlex Marine Technology Ltd,,
Fenland District Council,Trading,Marine Services,Supplies and Services,31/01/2018,20190974,730.00 ,Marlex Marine Technology Ltd,,
Fenland District Council,The Base - Drinks Vending Machine,Balance Sheet Services,Balance Sheet,31/01/2018,20190831,915.44 ,MARS Drinks UK Limited,,
Fenland District Council,Planning Services,Development Control,Employee Costs,17/01/2018,20190017,"1,595.00 ",Matchtech Group Uk Limited,,
Fenland District Council,Planning Services,Development Control,Employee Costs,10/01/2018,20190328,"2,523.00 ",Matchtech Group Uk Limited,,
Fenland District Council,Planning Services,Development Control,Employee Costs,10/01/2018,20190329,"1,957.50 ",Matchtech Group Uk Limited,,
Fenland District Council,Planning Services,Development Control,Employee Costs,10/01/2018,20190330,"1,566.00 ",Matchtech Group Uk Limited,,
Fenland District Council,Cultural and Related Services,Leisure Centres,Supplies and Services,04/01/2018,10033146,38.40 ,MeetEdgar.com,Y,
Fenland District Council,Cultural and Related Services,Leisure Centres,Supplies and Services,29/01/2018,10033221,37.91 ,MeetEdgar.com,Y,
Fenland District Council,Housing General Fund Services,Travellers Services,Employee Costs,31/01/2018,20190765,"1,669.54 ",MIS Active Management Systems Limited,,
Fenland District Council,Corporate and Democratic Core,Corporate Management,Supplies and Services,03/01/2018,20190037,"1,250.00 ",Mishcon de Reya Solicitors,,
Fenland District Council,Corporate and Democratic Core,Corporate Management,Supplies and Services,31/01/2018,20190915,"2,000.00 ",Mishcon de Reya Solicitors,,
Fenland District Council,Environment Services,Garden Waste,Supplies and Services,10/01/2018,20190107,865.00 ,Molco Trading Ltd t/as Papersacks,,
Fenland District Council,Cultural and Related Services,Leisure Centres,Supplies and Services,24/01/2018,20190623,653.85 ,Morvend Limited,,
Fenland District Council,Corporate and Democratic Core,Corporate Management,Supplies and Services,04/01/2018,10033138,25.20 ,National Car Parks (NCP),Y,
Fenland District Council,Housing General Fund Services,Travellers Services,Premises Costs,31/01/2018,20190633,"2,615.00 ",Nene Property Solutions Ltd,,
Fenland District Council,Cultural and Related Services,Recreation Grounds & Allotments,Premises Costs,31/01/2018,20190634,649.20 ,Nene Property Solutions Ltd,,
Fenland District Council,Cultural and Related Services,Sports Development,Supplies and Services,31/01/2018,20190755,749.17 ,Newitt & Co Ltd,,
Fenland District Council,Support Services,Information & Communication Technology,Supplies and Services,24/01/2018,20190698,"3,680.00 ",NG Bailey IT Services Limited,,
Fenland District Council,Environment Services,Street Cleansing,Supplies and Services,17/01/2018,20190458,724.13 ,Northern Municipal Spares Ltd,,
Fenland District Council,Support Services,Information & Communication Technology,Supplies and Services,24/01/2018,20190539,844.95 ,O2 (Uk) Limited,,
Fenland District Council,Fuel Control Account,Balance Sheet Services,Balance Sheet,17/01/2018,20190394,"34,655.27 ",Pace Fuelcare,,
Fenland District Council,Trading,Marine Services,Transport Costs,17/01/2018,20190499,"1,732.50 ",Pace Fuelcare,,
Fenland District Council,Trading,Marine Services,Transport Costs,17/01/2018,20190501,"1,787.10 ",Pace Fuelcare,,
Fenland District Council,Cultural and Related Services,Sports Development,Supplies and Services,31/01/2018,20190740,"2,500.00 ",Parkrun Limited,,
Fenland District Council,Support Services,Accountancy,Employee Costs,10/01/2018,20190318,"1,750.00 ",Penna Plc,,
Fenland District Council,Planning Services,Development Control,Employee Costs,17/01/2018,20190533,"7,371.91 ",Peterborough City Council,,
Fenland District Council,Support Services,Information & Communication Technology,Supplies and Services,10/01/2018,20190113,"28,741.35 ",Phoenix Software Limited,,
Fenland District Council,Support Services,Post & Reprographics,Supplies and Services,03/01/2018,20189794,"3,008.00 ",Pitney Bowes Ltd,,
Fenland District Council,Support Services,Post & Reprographics,Supplies and Services,03/01/2018,20189795,"3,008.00 ",Pitney Bowes Ltd,,
Fenland District Council,Support Services,Post & Reprographics,Supplies and Services,03/01/2018,20189796,"3,008.00 ",Pitney Bowes Ltd,,
Fenland District Council,Support Services,Post & Reprographics,Supplies and Services,17/01/2018,20190502,"3,008.00 ",Pitney Bowes Ltd,,
Fenland District Council,Support Services,Post & Reprographics,Supplies and Services,31/01/2018,20190813,"3,008.00 ",Pitney Bowes Ltd,,
Fenland District Council,Housing Grants,Capital Services,Capital Costs,10/01/2018,20190155,"10,956.00 ",Pollock Lifts,,
Fenland District Council,Cultural and Related Services,Leisure Centres,Supplies and Services,24/01/2018,20190620,"7,469.75 ",Precor Products Ltd,,
Fenland District Council,Support Services,Post & Reprographics,Supplies and Services,31/01/2018,20190821,511.50 ,Premier Paper Group Ltd,,
Fenland District Council,Housing General Fund Services,Travellers Services,Premises Costs,03/01/2018,20189538,"1,375.00 ",Pro-Clean Industrial UK Ltd,,
Fenland District Council,Support Services,Customer First,Premises Costs,17/01/2018,20190109,830.00 ,Pro-Clean Industrial UK Ltd,,
Fenland District Council,Trading,Economic Estates,Supplies and Services,17/01/2018,20190419,513.00 ,Purchase Power,,
Fenland District Council,Trading,Economic Estates,Supplies and Services,17/01/2018,20190420,"3,052.00 ",Purchase Power,,
Fenland District Council,Central Services,Elections & Electoral Registration,Supplies and Services,10/01/2018,20189555,"1,982.00 ",QAV Limited,,
Fenland District Council,Trading,Economic Estates,Supplies and Services,10/01/2018,20189916,"11,865.00 ",Quadrant Security Group Limited,,
Fenland District Council,Environment Services,CCTV,Supplies and Services,17/01/2018,20190410,"1,708.00 ",Quadrant Security Group Limited,,
Fenland District Council,Corporate and Democratic Core,Corporate Management,Supplies and Services,24/01/2018,20190761,695.00 ,Redactive Events Ltd,,
Fenland District Council,Housing Grants,Capital Services,Capital Costs,24/01/2018,20189882,"8,302.00 ",Richard Masham,,
Fenland District Council,Housing Grants,Capital Services,Capital Costs,24/01/2018,20189883,"1,840.00 ",Richard Masham,,
Fenland District Council,Support Services,Customer First,Premises Costs,23/01/2018,20190498,"7,875.00 ",Ringham's,,
Fenland District Council,Highways District,Capital Services,Capital Costs,10/01/2018,20190205,"7,476.94 ",Ringway Infrastructure Services Ltd,,
Fenland District Council,Planning Services,Community Events,Supplies and Services,24/01/2018,20190206,"2,649.60 ",Ringway Infrastructure Services Ltd,,
Fenland District Council,Housing General Fund Services,Controlling Migration,Supplies and Services,24/01/2018,20189889,"17,000.00 ",Rosmini Centre Wisbech,,
Fenland District Council,Cultural and Related Services,Sports Development,Employee Costs,31/01/2018,20190699,595.46 ,Rosmini Centre Wisbech,,
Fenland District Council,Trading,Economic Estates,Supplies and Services,03/01/2018,20190040,519.00 ,Royal Inst Chartered Surveyors,,
Fenland District Council,Trading,Economic Estates,Supplies and Services,03/01/2018,20190041,519.00 ,Royal Inst Chartered Surveyors,,
Fenland District Council,Multiple Services,Multiple Services,Supplies and Services,12/01/2018,20190180,"1,510.50 ",RSP Rail Travel Account,,
Fenland District Council,Multiple Services,Multiple Services,Supplies and Services,15/01/2018,20190432,"1,231.40 ",RSP Rail Travel Account,,
Fenland District Council,Support Services,Human Resources,Employee Costs,24/01/2018,20190763,620.00 ,SBG Training & Development Ltd t/a UK Fire Training Ltd,,
Fenland District Council,Support Services,Human Resources,Employee Costs,24/01/2018,20190764,620.00 ,SBG Training & Development Ltd t/a UK Fire Training Ltd,,
Fenland District Council,Trading,Marine Services,Supplies and Services,10/01/2018,20190265,994.00 ,Sealite UK Limited,,
Fenland District Council,Cultural and Related Services,Recreation Grounds & Allotments,Premises Costs,31/01/2018,20190476,990.56 ,Severn Trent Services Operations UK Ltd,,
Fenland District Council,Housing General Fund Services,Homeless Persons,Supplies and Services,03/01/2018,20189890,"1,034.00 ",Shelter Training & Publications,,
Fenland District Council,Trading,Economic Estates,Premises Costs,17/01/2018,20190366,"11,250.00 ",Snowmountain Enterprises Ltd,,
Fenland District Council,Support Services,Human Resources,Supplies and Services,17/01/2018,20190224,"2,061.63 ",Sodexo Motivation Solutions UK Ltd,,
Fenland District Council,Housing General Fund Services,Homeless Persons,Employee Costs,10/01/2018,20190170,"3,848.63 ",South Cambridgeshire District Council,,
Fenland District Council,Planning Services,Building Control,Supplies and Services,03/01/2018,20190085,"15,000.00 ",South Norfolk District Council t/a CNC,,
Fenland District Council,Planning Services,Building Control,Supplies and Services,03/01/2018,20190086,"15,000.00 ",South Norfolk District Council t/a CNC,,
Fenland District Council,Housing Grants,Capital Services,Capital Costs,24/01/2018,20190466,"2,754.00 ",Stannah Lift Services Ltd,,
Fenland District Council,Housing Grants,Capital Services,Capital Costs,31/01/2018,20190779,"3,004.00 ",Stannah Lift Services Ltd,,
Fenland District Council,Trading,Economic Estates,Premises Costs,03/01/2018,20189874,880.00 ,Strattons Liquid Waste Disposal Limited,,
Fenland District Council,Multiple Services,Multiple Services,Premises Costs,10/01/2018,20190128,"2,695.01 ",Strattons Liquid Waste Disposal Limited,,
Fenland District Council,Trading,Economic Estates,Premises Costs,17/01/2018,20190414,660.00 ,Strattons Liquid Waste Disposal Limited,,
Fenland District Council,Support Services,Fenland Hall,Premises Costs,03/01/2018,20189995,"1,188.00 ",T Clarke East Ltd,,
Fenland District Council,Support Services,Vehicle Workshop & Transport,Transport Costs,03/01/2018,20189797,-758.50 ,Terberg Matec Uk Ltd,,
Fenland District Council,Support Services,Vehicle Workshop & Transport,Transport Costs,03/01/2018,20189817,758.50 ,Terberg Matec Uk Ltd,,
Fenland District Council,Support Services,Vehicle Workshop & Transport,Transport Costs,03/01/2018,20189897,"1,050.26 ",Terberg Matec Uk Ltd,,
Fenland District Council,Support Services,Vehicle Workshop & Transport,Transport Costs,24/01/2018,20190736,537.95 ,Terberg Matec Uk Ltd,,
Fenland District Council,Central Services,Elections & Electoral Registration,Supplies and Services,17/01/2018,20190374,"1,210.00 ",The Association Of Electoral Administrators,,
Fenland District Council,Central Services,Elections & Electoral Registration,Supplies and Services,24/01/2018,20190685,"1,759.53 ",The Association Of Electoral Administrators,,
Fenland District Council,Trading,Economic Estates,Supplies and Services,03/01/2018,20190004,629.17 ,The Ferry Project,,
Fenland District Council,Support Services,Vehicle Workshop & Transport,Transport Costs,29/01/2018,10033224,517.50 ,The VM Diesel Specialist,Y,
Fenland District Council,Wind Turbines,Balance Sheet Services,Balance Sheet,03/01/2018,20189941,"2,750.00 ",The Wildlife Trust BCN,,
Fenland District Council,Multiple Services,Multiple Services,Supplies and Services,24/01/2018,20190188,"3,888.80 ",Thinking Software,,
Fenland District Council,Housing General Fund Services,Controlling Migration,Employee Costs,24/01/2018,20189888,785.00 ,TMP (UK) Limited,,
Fenland District Council,Cultural and Related Services,Leisure Centres,Premises Costs,17/01/2018,20190467,"1,077.88 ",Total Gas & Power Limited,,
Fenland District Council,Trading,Economic Estates,Premises Costs,24/01/2018,20190555,724.22 ,Total Gas & Power Limited,,
Fenland District Council,Trading,Economic Estates,Premises Costs,24/01/2018,20190567,"3,364.77 ",Total Gas & Power Limited,,
Fenland District Council,Cultural and Related Services,Leisure Centres,Premises Costs,24/01/2018,20190573,"1,898.16 ",Total Gas & Power Limited,,
Fenland District Council,Trading,Economic Estates,Premises Costs,24/01/2018,20190577,"1,291.06 ",Total Gas & Power Limited,,
Fenland District Council,Cultural and Related Services,Leisure Centres,Premises Costs,24/01/2018,20190580,"1,654.37 ",Total Gas & Power Limited,,
Fenland District Council,Trading,Marine Services,Premises Costs,24/01/2018,20190584,573.50 ,Total Gas & Power Limited,,
Fenland District Council,Support Services,The Base,Premises Costs,24/01/2018,20190585,"1,454.09 ",Total Gas & Power Limited,,
Fenland District Council,Cultural and Related Services,Leisure Centres,Premises Costs,24/01/2018,20190586,818.07 ,Total Gas & Power Limited,,
Fenland District Council,Trading,Marine Services,Premises Costs,24/01/2018,20190589,543.52 ,Total Gas & Power Limited,,
Fenland District Council,Support Services,Fenland Hall,Premises Costs,24/01/2018,20190590,"3,054.13 ",Total Gas & Power Limited,,
Fenland District Council,Environment Services,Sewage Treatment Works,Premises Costs,24/01/2018,20190591,553.42 ,Total Gas & Power Limited,,
Fenland District Council,Cultural and Related Services,Leisure Centres,Premises Costs,24/01/2018,20190592,"1,515.31 ",Total Gas & Power Limited,,
Fenland District Council,Housing Grants,Capital Services,Capital Costs,03/01/2018,20190019,"3,935.00 ",Total Hygiene Ltd,,
Fenland District Council,Housing Grants,Capital Services,Capital Costs,31/01/2018,20190946,"4,120.00 ",Total Hygiene Ltd,,
Fenland District Council,Support Services,Vehicle Workshop & Transport,Supplies and Services,31/01/2018,20189423,534.00 ,Totalkare Heavy Duty Workshop Solutions Ltd,,
Fenland District Council,Cultural and Related Services,Leisure Centres,Third Party Payments,03/01/2018,20189909,978.52 ,ukactive,,
Fenland District Council,Support Services,Information & Communication Technology,Supplies and Services,24/01/2018,20190615,"2,356.00 ",UNIT4 Business Software Limited,,
Fenland District Council,Cultural and Related Services,Leisure Centres,Supplies and Services,24/01/2018,20190492,"1,044.55 ",V & J Knitwear,,
Fenland District Council,Support Services,Information & Communication Technology,Supplies and Services,31/01/2018,20190536,"2,085.75 ",Vodafone Limited,,
Fenland District Council,Environment Services,Cemeteries,Supplies and Services,03/01/2018,20189895,550.00 ,W & W G West,,
Fenland District Council,Trading,Economic Estates,Premises Costs,31/01/2018,20190691,"1,362.00 ",W C Goult,,
Fenland District Council,Trading,Economic Estates,Premises Costs,31/01/2018,20190694,710.00 ,W C Goult,,
Fenland District Council,Trading,Economic Estates,Premises Costs,31/01/2018,20190695,"3,200.00 ",W C Goult,,
Fenland District Council,Environment Services,Sewage Treatment Works,Supplies and Services,03/01/2018,20189924,"1,443.12 ",W H Shoebridge & Son,,
Fenland District Council,Housing General Fund Services,Travellers Services,Premises Costs,31/01/2018,20190760,"1,581.10 ",W H Shoebridge & Son,,
Fenland District Council,Environment Services,Sewage Treatment Works,Supplies and Services,31/01/2018,20190894,676.94 ,W H Shoebridge & Son,,
Fenland District Council,Trading,Economic Estates,Premises Costs,03/01/2018,20189988,850.00 ,WDR Ltd,,
Fenland District Council,Cultural and Related Services,Leisure Centres,Premises Costs,03/01/2018,20189989,950.00 ,WDR Ltd,,
Fenland District Council,Support Services,Customer First,Premises Costs,10/01/2018,20190167,"8,493.89 ",Whitfield Estates Ltd,,
Fenland District Council,Wind Turbines,Balance Sheet Services,Balance Sheet,03/01/2018,20189942,"5,000.00 ",Whittlesey Christian Church,,
Fenland District Council,Cultural and Related Services,Leisure Centres,Supplies and Services,17/01/2018,20190503,"9,767.94 ",Wilks Head & Eve,,
Fenland District Council,Trading,Economic Estates,Premises Costs,31/01/2018,20189921,618.00 ,World Of Flooring Limited,,
Fenland District Council,Trading,Economic Estates,Premises Costs,31/01/2018,20190192,"1,362.00 ",World Of Flooring Limited,,
Fenland District Council,Environment Services,Sewage Treatment Works,Supplies and Services,31/01/2018,20190657,"1,123.00 ",Wymark Limited,,
